Cogmind - Beta 10.2 @@@ ROGUE MODE // 2021.07.19 @ 18:03:59 Player: OccultOnion Result: Destroyed by G-34 Mercenary with Small Laser Performance ------------- Evolutions (0) 0 Regions Visited (1) 200 Robots Destroyed (19) 95 Value Destroyed (426) 426 Prototype IDs (0) 0 Alien Tech Used (0) 0 Bonus (0) 0 TOTAL SCORE: 721 Bonus ------- None Cogmind --------- Core Integrity 0/250 Matter 280/300 Energy 75/100 System Corruption 0% Temperature Cool (6) Movement Hovering (56) Location -10/Materials Parts ------- > --- POWER (1) -------- (None) > --- PROPULSION (2) --- Hover Unit Hover Unit > --- UTILITY (2) ------ (None) > --- WEAPON (2) ------- Hammer > --- INVENTORY (4) ---- (None) Peak State ------------ > --- POWER ------------ Light Ion Engine > --- PROPULSION ------- Aluminum Leg Aluminum Leg > --- UTILITY ---------- Small Storage Unit Improved Terrain Scanner > --- WEAPON ----------- Small Laser Assault Rifle > --- INVENTORY -------- Light Treads Light Treads Compact Wheel Compact Wheel Small Laser [Rating: 8] Favorites ----------- Power Light Ion Engine Engine Light Ion Engine Propulsion Aluminum Leg Leg Aluminum Leg Wheel Compact Wheel Hover Unit Hover Unit Utility Small Storage Unit Device Improved Terrain Scanner Storage Small Storage Unit Weapon Assault Rifle Energy Gun Small Laser Ballistic Gun Assault Rifle Impact Weapon Hammer Build | -11 -10 ------- Run | Scr Mat Slots Evolved . | . . Power . | . . Propulsion . | . . Utility . | . . Weapon . | . . Parts Attached 11 | 1 10 Power 1 | . 1 Engine 1 | . 1 Core . | . . Reactor . | . . Propulsion 5 | . 5 Treads . | . . Leg 2 | . 2 Wheel 1 | . 1 Hover 2 | . 2 Flight . | . . Utility 2 | 1 1 Device 2 | 1 1 Storage . | . . Processor . | . . Hackware . | . . Protection . | . . Artifact . | . . Weapon 3 | . 3 Energy Gun 2 | . 2 Energy Cannon . | . . Ballistic Gun . | . . Ballistic Cannon . | . . Launcher . | . . Special Weapon . | . . Impact Weapon 1 | . 1 Slashing Weapon . | . . Piercing Weapon . | . . Special Melee Weapon . | . . Unidentified Prototypes . | . . Parts Lost 14 | . 14 Power 2 | . 2 Propulsion 5 | . 5 Utility 3 | . 3 Weapon 4 | . 4 Highest Loss Streak 10 | . 10 Average Slot Usage (%) 86 | . 86 Engine 10 | . 10 Leg 22 | . 22 Wheel 1 | . 1 Hover 1 | . 1 Device 12 | . 12 Storage 13 | . 13 Energy Gun 11 | . 11 Ballistic Gun 10 | . 10 Impact Weapon 3 | . 3 Naked Turns . | . . Heaviest Build 12 | 11 12 Greatest Support 20 | 20 20 Greatest Overweight (x) 2 | . 2 Average Overweight (x) . | . . Largest Inventory Capacity 6 | 6 6 Average Capacity 5 | 6 5 Most Carried 6 | 6 6 Average Carried 5 | 5 4 Final Capacity 6 | 6 4 Final Carried 6 | 6 . Class Distribution -------------------- 100% | Mutant Dominant Class ---------------- Mutant | -10/Materials Resources | -11 -10 ----------- Run | Scr Mat Matter Collected 406 | 230 176 Remotely . | . . Salvage Created 625 | 67 558 Parts 36 | 1 35 Haulers Intercepted 1 | . 1 Recyclers Shooed 1 | . 1 Parts Field Recycled . | . . Retrieved Matter . | . . Parts Self-Destructed . | . . Prevented . | . . Kills | -11 -10 ------- Run | Scr Mat Combat Hostiles Destroyed 11 | . 11 Melee 3 | . 3 Guns 8 | . 8 Classes Destroyed 8 | 2 6 Builder 1 | . 1 Tunneler 1 | 1 . Hauler 1 | . 1 Recycler 2 | 1 1 Operator 2 | . 2 Watcher 1 | . 1 Swarmer 2 | . 2 Grunt 9 | . 9 Best Kill Streak 4 | 1 4 Combat Bots Only 3 | . 3 Max Kills in Single Turn 1 | 1 1 Gunslinging . | . . Exploded . | . . Melee 1 | . 1 Uniques/NPCs Destroyed . | . . Combat | -11 -10 -------- Run | Scr Mat Damage Taken 1131 | . 1131 Core 250 | . 250 Absorbed by Shields . | . . Core Remaining (%) 100 | 100 . Volleys Fired 66 | 10 56 Largest 2 | 2 2 Hottest 70 | 60 70 Shots Fired 116 | 20 96 Gun 116 | 20 96 Cannon . | . . Launcher . | . . Special . | . . Kinetic 52 | 10 42 Thermal 64 | 10 54 Explosive . | . . Electromagnetic . | . . Robot Hit Streak 9 | 5 9 Robot Miss Streak 3 | 1 3 Penetration Max . | . . Secondary Targets . | . . Shots Hit Robots 93 | 15 78 Core Hits 34 | 3 31 Critical Hits . | . . Critical Kills . | . . Critical Parts Destroyed . | . . Melee Attacks 26 | . 26 Impact 26 | . 26 Slashing . | . . Piercing . | . . Sneak Attacks . | . . Combat Hostiles . | . . Follow-up Attacks . | . . Damage Inflicted 1169 | 165 1004 Guns 943 | 165 778 Cannons . | . . Explosions . | . . Melee 226 | . 226 Ramming . | . . Kinetic 431 | 110 321 Thermal 512 | 55 457 Explosive . | . . Electromagnetic . | . . Impact 226 | . 226 Slashing . | . . Piercing . | . . Highest Corruption . | . . Average Corruption . | . . Corruption Purged . | . . Overload Shots . | . . Overflow Damage 3 | . 3 Projectiles . | . . Explosions . | . . Melee 3 | . 3 Knockbacks 1 | . 1 Impact 1 | . 1 Kinetic . | . . Secondary . | . . Self-Inflicted Damage . | . . Shots . | . . Rammed . | . . Targets Rammed . | . . Kicked . | . . Crushed . | . . Highest Temperature 118 | . 118 Average Temperature 34 | . 34 Received Heat Transfer 528 | . 528 Siege Activations . | . . Robots Corrupted . | . . Combat Hostiles . | . . Parts Fried . | . . Impact Corruptions 1 | . 1 Robots Melted . | . . Combat Hostiles . | . . Parts Melted 1 | . 1 Heat Transferred 1280 | 125 1155 Parts Sabotaged . | . . Parts Stolen . | . . Parts Stripped . | . . Power Chain Reactions . | . . Missiles Intercepted . | . . Alert | -11 -10 ------- Run | Scr Mat Peak Influence 219 | 10 219 Initial 6 | . 6 Average 89 | 6 98 Maximum Alert Level 1 | . 1 Low Security (%) 96 | 100 96 Level 1 3 | . 3 Level 2 . | . . Level 3 . | . . Level 4 . | . . Level 5 . | . . High Security . | . . Max Security . | . . Squads Dispatched 3 | . 3 Investigation . | . . Extermination . | . . Reinforcement 3 | . 3 Assault . | . . Garrison . | . . Intercept . | . . Construction Impeded . | . . Haulers Reinforced . | . . Stealth | -11 -10 --------- Run | Scr Mat Distress Signals 3 | . 3 Communications Jammed . | . . Distress Signals . | . . Times Spotted 24 | . 24 Peak Tracking Total 5 | . 5 Tactical Retreats 1 | . 1 Traps | -11 -10 ------- Run | Scr Mat Traps Triggered . | . . Indirectly . | . . Trap Hack Attempts . | . . Triggered . | . . Disarmed . | . . Reprogrammed . | . . Reused . | . . Traps Extracted . | . . Installed . | . . Triggered . | . . Machines | -11 -10 ---------- Run | Scr Mat Machines Disabled . | . . Max in Single Turn . | . . Machines Sabotaged . | . . Garrisons Compromised . | . . Overloaded Fab Kills . | . . Fab Network Shutdowns . | . . Hacking | -11 -10 --------- Run | Scr Mat Machines Accessed 1 | . 1 Terminals 1 | . 1 Fabricators . | . . Repair Stations . | . . Recycling Units . | . . Scanalyzers . | . . Garrison Access . | . . Total Hacks 3 | . 3 Successful 1 | . 1 Failed 2 | . 2 Catastrophic 1 | . 1 Database Lockouts . | . . Manual 3 | . 3 Terminals 3 | . 3 Fabricators . | . . Repair Stations . | . . Recycling Units . | . . Scanalyzers . | . . Garrison Access . | . . Terminal Hacks . | . . Fabricator Hacks . | . . Repair Station Hacks . | . . Recycling Unit Hacks . | . . Scanalyzer . | . . Garrison Access Hacks . | . . Unauthorized Hacks 1 | . 1 Terminals 1 | . 1 Botnet 1 | . 1 Fabricators . | . . Repair Stations . | . . Recycling Units . | . . Scanalyzers . | . . Garrison Access . | . . Data Cores Recovered . | . . Used . | . . Hacking Detections 1 | . 1 Full Trace Events . | . . Feedback Events . | . . Feedback Blocked . | . . Robot Schematics Acquired . | . . Robots Built . | . . Matter . | . . Time . | . . Total Robot Build Rating . | . . Part Schematics Acquired . | . . Parts Built . | . . Matter . | . . Time . | . . Total Part Build Rating . | . . Parts Repaired . | . . Time . | . . Parts Recycled . | . . Recycled Matter . | . . Retrieved Matter . | . . Retrieved Components . | . . Parts Scanalyzed . | . . Part Schematics Acquired . | . . Parts Damaged . | . . Bothacking | -11 -10 ------------ Run | Scr Mat Used RIF Installer . | . . Robots Hacked . | . . Non-combat . | . . Combat . | . . Robot Hacks Applied . | . . Relay Couplers Released . | . . Robots Rewired . | . . Allies Hacked . | . . Hacks Repelled . | . . Allies | -11 -10 -------- Run | Scr Mat Total Allies . | . . Largest Group . | . . Highest-Rated Group . | . . Highest-Rated Ally . | . . Total Orders . | . . Ally Attacks . | . . Total Damage . | . . Kills . | . . Allies Corrupted . | . . Allies Melted . | . . Intel | -11 -10 ------- Run | Scr Mat Robot Analysis Total . | . . Derelict Logs Recovered . | . . Drone Launches . | . . Drone Recoveries . | . . Exploration | -11 -10 ------------- Run | Scr Mat Turns Passed 550 | 54 496 Spaces Moved 225 | 18 207 Core 3 | . 3 Treads . | . . Legs 219 | 18 201 Wheels 3 | . 3 Hover . | . . Flight . | . . Fastest Speed 100 | 120 100 Average Speed 120 | 120 120 Slowest Speed 150 | 120 150 Overloaded Moves . | . . Propulsion Burnouts . | . . Robots Hopped . | . . Cave-ins Triggered . | . . Exploration Rate (%) 19 | 2 36 Regions Visited 1 Branch Regions . Pre-discovered Areas . | . . Known Exits Taken . | . . Unknown Exits Taken 1 | 1 . Scrap Searched . | . . Spaces Dug . | . . Terrain Destroyed . | . . Melee . | . . Projectile . | . . AOE . | . . Terrain Rammed . | . . Walls Destroyed . | . . Machines Disabled . | . . Actions | -11 -10 --------- Run | Scr Mat Total 355 | 31 324 Wait 9 | . 9 Move 224 | 17 207 Hop . | . . Pick Up 12 | 2 10 Fast Attach . | . . Attach 11 | 1 10 Detach . | . . Swap . | . . Drop 7 | 1 6 Fire 66 | 10 56 Melee 26 | . 26 Ram . | . . Kick . | . . Crush . | . . Escape Stasis . | . . Rewire . | . . Trap . | . . Miscellaneous . | . . Route ------- -11/Scrapyard -10/Materials (discovered 1 exit: [*Min]) History --------- Turn | Location | Event 10 | -11/Scrapyard | Discovered new exit (range 2) 55 | -11/Scrapyard | Entered Materials 150 | -10/Materials | Discovered new exit (range 16) 332 | -10/Materials | Build established: Mutant 469 | -10/Materials | Core integrity fell below 50% 501 | -10/Materials | Lost 10 parts (2p4n1u3w) 521 | -10/Materials | Core integrity fell below 20% 551 | -10/Materials | Destroyed by G-34 Mercenary with Small Laser Last Messages --------------- 00470_ Aluminum Leg destroyed. 00472_ Acquired Sml. Laser. 00480_ Acquired 10 matter. 00483_ Acquired Aluminum Leg. 00489_ G-34 Mercenary destroyed. 00490_ R-06 Scavenger collects Aluminum Leg. 00491_ Acquired 10 matter. 00496_ W-16 Scout sends out distress signal. 00503_ Sml. Laser destroyed. 00512_ Critical hit. 00512_ Aluminum Leg destroyed. 00513_ S-10 Pest destroyed. 00523_ Destroyed Flight Unit. 00523_ S-10 Pest system corrupted by crushing effect. 00523_ S-10 Pest IFF system glitched. 00527_ S-10 Pest misfires. 00529_ Imp. Heat Sink destroyed. 00536_ S-10 Pest misfires. 00538_ Sml. Storage Unit destroyed. 00542_ S-10 Pest destroyed. Map ----- +----------------------------------------------------+ | | | | | | | ?????????????????????????????????????????????????? | | ?????????????????????????????????????????????????? | | ?????????????????????????????????????????????????? | | ?????????????????????????????????????????????????? | | ?????????????????????????????????????????????????? | | ?????????????????????????????????????????????????? | | ?????????????????????????????????????????????????? | | ??????????????????????????##+##????????#??????#?#? | | ??????????????????????????# #?????#???????????#? | | ??????????????????????????# #??????????????????? | | ??????????????????????????# #??????????####????? | | ??????????????????????????+ #???????#?##"""##?#? | | ??????????????????????????# #?? ?????##"!!!"##?? | | ??????????????????????????# #?""?????#"" ""#?? | | ??????????????????????##### # "????? # ??? | | ??????????????? ??????? # ??"????# < ##? | | ??????????????????? ???? +????????# ??? | | ???????????????????? ???? #????????# ??#? | | ??????????????????????????# #?????????# ??#? | | ????????????????########### #????? ??#?# *##### | | ????????????????# %#s # ? ?? ??### %#= | | ????????????????# %g #??????????# =!+%"" | | ????????????????# @# ##??#??????# %=#!"T | | ??????????#?????# ! # #???#???#?## #%"" | | ????????????????########### ##????###?## [#!* | | ?????????#??????# ^!! # |#?????#??## % # | | ????????????????# %! ^%# #?#?#?????# !# / | | ????????????????# !! %+% #??####???# #| / | | ????????????????# ^ %# #? ??##% # / | | ????????????????# # ## "" #?# ##### | | ????????????????##+######### ###? "T ??# #???# | | ????????????????????########+###??"" ??#% #?### | | ????????????????????# #??? #?# % ###?? | | ???????????????? ???# ! #???? ?## ##??? | | ????????????? ?????# [ ########+## #### | | ????????????????????# # % | | ????????????????????# """ """ / | | ????????????????????+ """ """ # | | ????????????????????# """ """ ########/## ## | | ??????????????????? # #??# ###+#### | | ????????????????????###########??# = ""# ?##% | | ???????????????????????????#?????# ""# """ #?# | | ???????????????????????? ????????# T"# """ #?# | | ??????????????????????? ??? ????# ""# """ #?# | | ????????????????????????????? ???# # """ #?# | | ?????????????????????????????????######## #?# | | ????????????????????#???????????????????# #?# | +----------------------------------------------------+ Best States ------------- Heat Dissipation 39 Energy Generation 10 Energy Capacity 250 Matter Stores 300 Matter Capacity 300 Sight Range 16 Terrain Scan Range 16 Terrain Scan Density 10 Evasion (%) 45 Item Schematics ----------------- None Robot Schematics ------------------ None Fabricated ------------ Nothing Alien Tech Used ----------------- None Achievements -------------- None Challenges ------------ None Game ------ Seed GatlingGlidesysWheel Manual? 0 Play Time 00:07:52 Cumulative 92.0 hours Start 2021.07.19 @ 17:59:46 End 2021.07.19 @ 18:03:59 Sessions 1 Manual Loads 0 Difficulty Rogue Special Mode None Game No. 191 Rogue 191 Adventurer 0 Explorer 0 Win Type - Total 0 Types 0/0/0/0/0/0/0/0/0 Lore% 34 Gallery% 56 Achievement% 35 Wizard Run 0 Options --------- ASCII 0 Keyboard 1 Movement Numpad Keybinds 0 Fullscreen 1 Font 18/SmallcapsGlow Map View 76x50 Tactical HUD 1 Map Filters NONE Filters NONE Steam 1 RUN: 1a6dc1fb-6d5a-4068-be1b-fa52b9cfa416